fUST/lending_fUST_20260101
["ID","MTS","AMOUNT","RATE_DAILY","PERIOD"]
[400232274,1767208241452,-151.0,0.00026374,2]
[400232275,1767208241461,-500.0,0.00026374,2]
[400232277,1767208241470,-250.0,0.00026374,2]
[400232279,1767208241480,-151.0,0.00026374,2]
[400232281,1767208241489,-500.0,0.00026374,2]
[400232283,1767208241498,-250.0,0.00026374,2]
[400232285,1767208241511,-151.0,0.00026374,2]
[400232287,1767208241520,-500.0,0.00026374,2]
[400232289,1767208241529,-250.0,0.00026374,2]
[400232291,1767208241538,-196.9088468,0.00026374,2]
[400232293,1767208241549,-500.0,0.00026374,2]
[400232295,1767208241558,-250.0,0.00026374,2]
[400232297,1767208241567,-500.0,0.00026374,2]
[400232299,1767208241576,-250.0,0.00026374,2]
[400232301,1767208241585,-500.0,0.00026374,2]
[400232303,1767208241594,-516.509709,0.00026374,2]
[400232305,1767208241604,-496.47127164,0.00026374,2]
[400232307,1767208241614,-500.0,0.00026374,2]
[400232309,1767208241623,-500.0,0.00026374,2]
[400232311,1767208241632,-500.0,0.00026374,2]
[400232313,1767208241641,-500.0,0.00026374,2]
[400232315,1767208241650,-500.0,0.00026374,2]
[400232317,1767208241659,-500.0,0.00026374,2]
[400232319,1767208241668,-500.0,0.00026374,2]
[400232321,1767208241678,-500.0,0.00026374,2]
[400232322,1767208241687,-500.0,0.00026374,2]
[400232324,1767208241696,-244.9,0.00026411,2]
[400232326,1767208241706,-500.0,0.00026575,2]
[400232328,1767208241715,-2576.28,0.00026575,2]
[400232330,1767208241724,-2928.54,0.00026575,2]
[400232332,1767208241733,-2424.11,0.00026575,2]
[400232334,1767208241743,-791.84,0.00026575,2]
[400232336,1767208241752,-500.0,0.00026575,2]
[400232338,1767208241761,-500.0,0.00026575,2]
[400232340,1767208241771,-500.0,0.00026575,2]
[400232342,1767208241780,-553.83,0.00026575,2]
[400232344,1767208241789,-1973.55132122,0.00026621,2]
[400232345,1767208241798,-1123.321112,0.00026676,2]
[400232347,1767208241808,-156.47,0.000268,7]
[400232349,1767208241817,-500.0,0.00026849,2]
[400232351,1767208241826,-2576.28,0.00026849,2]
[400232353,1767208241835,-2928.54,0.00026849,2]
[400232355,1767208241844,-2424.11,0.00026849,2]
[400232357,1767208241853,-791.84,0.00026849,2]
[400232359,1767208241862,-500.0,0.00026849,2]
[400232361,1767208241871,-500.0,0.00026849,2]
[400232363,1767208241880,-500.0,0.00026849,2]
[400232365,1767208241889,-553.83,0.00026849,2]
[400232367,1767208241898,-163.27,0.000269,2]
[400232369,1767208241907,-514.84070869,0.00026922,2]
[400232371,1767208241916,-6464.62555377,0.00026999,14]
[400232372,1767208241925,-5000.0,0.00026999,13]
[400232375,1767208241935,-5000.0,0.00026999,11]
[400232376,1767208241944,-5000.0,0.00026999,11]
[400232378,1767208241956,-5000.0,0.00026999,11]
[400232380,1767208241965,-184.0,0.00027,7]
[400232382,1767208241974,-166.0,0.00027,7]
[400232384,1767208241983,-8500.79,0.00027,2]
[400232386,1767208241992,-730.51847844,0.00027104,2]
[400232388,1767208242001,-500.0,0.00027123,2]
[400232390,1767208242011,-2576.28,0.00027123,2]
[400232392,1767208242019,-2928.54,0.00027123,2]
[400232394,1767208242029,-2424.11,0.00027123,2]
[400232396,1767208242038,-791.84,0.00027123,2]
[400232398,1767208242047,-500.0,0.00027123,2]
[400232400,1767208242056,-437.1869689,0.00027123,2]
[400232401,1767208242065,-500.0,0.00027123,2]
[400232403,1767208242074,-553.83,0.00027123,2]
[400232405,1767208242083,-3698.35,0.00027242,2]
[400232407,1767208242092,-2000.0,0.00027308,7]
[400232409,1767208242101,-2000.0,0.00027317,7]
[400232411,1767208242111,-173.81411526,0.00027318,16]
[400232413,1767208242120,-2000.0,0.00027326,7]
[400232415,1767208242129,-2000.0,0.00027334,7]
[400232417,1767208242138,-500.0,0.00027397,2]
[400232419,1767208242147,-2576.28,0.00027397,2]
[400232421,1767208242156,-2928.54,0.00027397,2]
[400232423,1767208242167,-2424.11,0.00027397,2]
[400232425,1767208242177,-791.84,0.00027397,2]
[400232427,1767208242186,-500.0,0.00027397,2]
[400232429,1767208242195,-500.0,0.00027397,2]
[400232431,1767208242205,-553.83,0.00027397,2]
[400232433,1767208242215,-299.0,0.00027397,2]
[400232435,1767208242224,-299.0,0.00027397,2]
[400232437,1767208242233,-299.0,0.00027397,2]
[400232439,1767208242242,-299.0,0.00027397,2]
[400232441,1767208242251,-299.0,0.00027397,2]
[400232451,1767208242355,-299.0,0.00027397,2]
[400232453,1767208242365,-299.0,0.00027397,2]
[400232455,1767208242375,-299.0,0.00027397,2]
[400232457,1767208242384,-299.0,0.00027397,2]
[400232459,1767208242394,-299.0,0.00027397,2]
[400232461,1767208242403,-299.0,0.00027397,2]
[400232463,1767208242414,-299.0,0.00027397,2]
[400232465,1767208242422,-299.0,0.00027397,2]
[400232467,1767208242432,-299.0,0.00027397,2]
[400232468,1767208242443,-299.0,0.00027397,2]
[400232470,1767208242452,-299.0,0.00027397,2]
[400232472,1767208242462,-299.0,0.00027397,2]
[400232474,1767208242474,-299.0,0.00027397,2]
[400232476,1767208242483,-299.0,0.00027397,2]
[400232478,1767208242493,-299.0,0.00027397,2]
[400232479,1767208242503,-299.0,0.00027397,2]
[400232480,1767208242517,-299.0,0.00027397,2]
[400232481,1767208242527,-299.0,0.00027397,2]
[400232482,1767208242537,-299.0,0.00027397,2]
[400232483,1767208242547,-299.0,0.00027397,2]
[400232484,1767208242559,-299.0,0.00027397,2]
[400232485,1767208242569,-299.0,0.00027397,2]
[400232486,1767208242580,-299.0,0.00027397,2]
[400232487,1767208242591,-299.0,0.00027397,2]
[400232488,1767208242601,-299.0,0.00027397,2]
[400232489,1767208242613,-299.0,0.00027397,2]
[400232490,1767208242623,-299.0,0.00027397,2]
[400232491,1767208242634,-150.58382148,0.00027397,5]
[400232492,1767208242645,-150.0,0.00027397,5]
[400232493,1767208242656,-533.88981491,0.0002747,2]
[400232494,1767208242666,-500.0,0.00027671,2]
[400232495,1767208242677,-2576.28,0.00027671,2]
[400232496,1767208242688,-2928.54,0.00027671,2]
[400232497,1767208242699,-2424.11,0.00027671,2]
[400232498,1767208242710,-791.84,0.00027671,2]
[400232499,1767208242720,-387.07268095,0.00027671,2]
[400232500,1767208242731,-631.9174778,0.00027671,2]
[400232501,1767208242741,-553.83,0.00027671,2]
[400232502,1767208242754,-2000.0,0.00027734,7]
[400232503,1767208242768,-2000.0,0.00027743,7]
[400232504,1767208242779,-2000.0,0.00027751,7]
[400232505,1767208242789,-2000.0,0.0002776,7]
[400232506,1767208242800,-2000.0,0.00027769,7]
[400232507,1767208242811,-2000.0,0.00027778,7]
[400232508,1767208242822,-2000.0,0.00027787,7]
[400232509,1767208242833,-2000.0,0.00027795,7]
[400232510,1767208242842,-2000.0,0.00027804,7]
[400232511,1767208242853,-2000.0,0.00027813,7]
[400232512,1767208242863,-2000.0,0.00027822,7]
[400232513,1767208242873,-2000.0,0.00027831,7]
[400232514,1767208242883,-2000.0,0.00027839,7]
[400232515,1767208242895,-2000.0,0.00027848,7]
[400232516,1767208242906,-2000.0,0.00027857,7]
[400232517,1767208242916,-2000.0,0.00027866,7]
[400232518,1767208242927,-2000.0,0.00027875,7]
[400232519,1767208242936,-2000.0,0.00027883,7]
[400232520,1767208242946,-2000.0,0.00027892,7]
[400232521,1767208242956,-2000.0,0.00027901,7]
[400232522,1767208242966,-2000.0,0.0002791,7]
[400232523,1767208242977,-2000.0,0.00027919,7]
[400232524,1767208242987,-2000.0,0.00027919,7]
[400232525,1767208242997,-2000.0,0.00027927,7]
[400232526,1767208243007,-2000.0,0.00027927,7]
[400232527,1767208243019,-2000.0,0.00027936,7]
[400232528,1767208243029,-2000.0,0.00027936,7]
[400232529,1767208243038,-2000.0,0.00027945,7]
[400232530,1767208243049,-362.41900291,0.00027945,2]
[400232531,1767208243059,-2576.28,0.00027945,2]
[400232532,1767208243069,-2928.54,0.00027945,2]
[400232533,1767208243079,-2424.11,0.00027945,2]
[400232534,1767208243088,-791.84,0.00027945,2]
[400232535,1767208243099,-2000.0,0.00027945,7]
[400232536,1767208243109,-553.83,0.00027945,2]
[400232537,1767208243119,-152.36606131,0.00027945,5]
[400232538,1767208243130,-1041.66666667,0.00028,7]
[400232539,1767208243139,-1041.66666667,0.00028,7]
[400232540,1767208243151,-927.34,0.00028,14]
[400232541,1767208243162,-553.64373807,0.00028018,2]
[400232542,1767208243173,-160.0,0.00028052,3]
[400232543,1767208243183,-174.0,0.00028055,27]
[400232544,1767208243193,-161.24844441,0.00028119,2]
[400232545,1767208243204,-2576.51978008,0.00028219,2]
[400232546,1767208243215,-2928.66751312,0.00028219,2]
[400232547,1767208243225,-178.917895,0.00028219,7]
[400232548,1767208243236,-182.784702,0.00028219,7]
[400232549,1767208243247,-805.861522,0.00028219,7]
[400232550,1767208243259,-805.861522,0.00028219,7]
[400232551,1767208243270,-805.861522,0.00028219,7]
[400232552,1767208243281,-187.899686,0.00028219,7]
[400232553,1767208243291,-805.861522,0.00028219,7]
[400232554,1767208243301,-151.0,0.00028219,7]
[400232555,1767208243311,-178.593012,0.00028219,2]
[400232556,1767208243321,-151.0,0.00028219,7]
[400232557,1767208243330,-151.0,0.00028219,7]
[400232558,1767208243340,-209.486994,0.00028219,7]
[400232559,1767208243352,-2424.15097059,0.00028219,2]
[400232560,1767208243362,-151.0,0.00028219,7]
[400232561,1767208243372,-151.0,0.00028219,7]
[400232562,1767208243382,-151.0,0.00028219,7]
[400232563,1767208243392,-300.511634,0.00028219,7]
[400232564,1767208243402,-792.07123298,0.00028219,2]
[400232565,1767208243412,-1549.100689,0.00028219,7]
[400232566,1767208243421,-1549.100689,0.00028219,7]
[400232567,1767208243430,-1549.100689,0.00028219,7]
[400232569,1767208243440,-1549.100689,0.00028219,7]
[400232570,1767208243449,-394.521351,0.00028219,7]
[400232571,1767208243458,-179.18193,0.00028219,7]
[400232572,1767208243467,-429.596572,0.00028219,7]
[400232573,1767208243476,-394.521351,0.00028219,7]
[400232574,1767208243485,-429.596572,0.00028219,7]
[400232575,1767208243494,-394.521351,0.00028219,7]
[400232576,1767208243504,-429.596572,0.00028219,7]
[400232577,1767208243513,-394.521351,0.00028219,7]
[400232578,1767208243522,-429.596572,0.00028219,7]
[400232579,1767208243531,-151.0,0.00028219,7]
[400232580,1767208243541,-151.0,0.00028219,7]
[400232581,1767208243550,-151.0,0.00028219,7]
[400232582,1767208243559,-151.0,0.00028219,7]
[400232584,1767208243568,-554.03895572,0.00028219,2]
[400232585,1767208243577,-244.9,0.00028242,3]
[400232586,1767208243587,-179.83814567,0.00028359,2]
[400232588,1767208243595,-574.12855637,0.00028566,2]
[400232589,1767208243605,-173.81411526,0.00028609,17]
[400232590,1767208243618,-160.0,0.00028637,4]
[400232591,1767208243627,-166.0,0.00028767,14]
[400232592,1767208243637,-151.0,0.00028914,7]
[400232593,1767208243647,-151.0,0.00028914,7]
[400232594,1767208243657,-270.454127,0.00028914,7]
[400232595,1767208243666,-435.404982,0.00028914,7]
[400232596,1767208243676,-270.454127,0.00028914,7]
[400232597,1767208243685,-352.845551,0.00028914,7]
[400232598,1767208243695,-435.404982,0.00028914,7]
[400232599,1767208243705,-270.454127,0.00028914,7]
[400232600,1767208243714,-352.845551,0.00028914,7]
[400232601,1767208243723,-435.404982,0.00028914,7]
[400232602,1767208243733,-270.454127,0.00028914,7]
[400232603,1767208243742,-352.845551,0.00028914,7]
[400232604,1767208243752,-435.404982,0.00028914,7]
[400232605,1767208243761,-352.845551,0.00028914,7]
[400232606,1767208243771,-151.0,0.00028914,7]
[400232607,1767208243781,-151.0,0.00028914,7]
[400232608,1767208243790,-151.0,0.00028914,7]
[400232609,1767208243799,-151.0,0.00028914,7]
[400232610,1767208243808,-151.0,0.00028914,7]
[400232611,1767208243818,-151.278502,0.00028914,7]
[400232612,1767208243828,-177.488115,0.00028914,7]
[400232613,1767208243837,-151.371196,0.00028914,7]
[400232614,1767208243847,-193.357014,0.00028914,7]
[400232615,1767208243856,-193.357014,0.00028914,7]
[400232616,1767208243865,-193.357014,0.00028914,7]
[400232617,1767208243874,-193.357014,0.00028914,7]
[400232618,1767208243883,-156.47,0.00029,7]
[400232619,1767208243892,-8500.79,0.00029,2]
[400232620,1767208243901,-784.40918587,0.00029104,2]
[400232621,1767208243910,-151.0,0.00029104,7]
[400232622,1767208243919,-151.0,0.00029104,7]
[400232623,1767208243928,-151.0,0.00029104,7]
[400232624,1767208243937,-151.0,0.00029104,7]
[400232625,1767208243947,-151.0,0.00029104,7]
[400232626,1767208243957,-151.0,0.00029104,7]
[400232627,1767208243967,-151.0,0.00029104,7]
[400232628,1767208243976,-151.0,0.00029104,7]
[400232629,1767208243985,-166.112827,0.00029104,7]
[400232630,1767208243995,-151.0,0.00029104,7]
[400232631,1767208244004,-396.831655,0.00029104,7]
[400232632,1767208244013,-396.831655,0.00029104,7]
[400232633,1767208244022,-396.831655,0.00029104,7]
[400232634,1767208244032,-396.831655,0.00029104,7]
[400232635,1767208244041,-151.0,0.00029104,7]
[400232636,1767208244050,-151.0,0.00029104,7]
[400232637,1767208244059,-151.0,0.00029104,7]
[400232638,1767208244069,-151.000017,0.00029104,7]
[400232639,1767208244078,-490.060247,0.00029104,7]
[400232640,1767208244087,-490.060247,0.00029104,7]
[400232641,1767208244097,-490.060247,0.00029104,7]
[400232642,1767208244107,-151.0,0.00029104,7]
[400232643,1767208244115,-490.060247,0.00029104,7]
[400232644,1767208244125,-151.0,0.00029104,7]
[400232645,1767208244134,-151.0,0.00029104,7]
[400232646,1767208244144,-595.37131296,0.00029114,2]
[400232647,1767208244154,-1041.66666667,0.000292,7]
[400232648,1767208244163,-279.38568335,0.00029207,2]
[400232649,1767208244172,-160.0,0.00029221,5]
[400232650,1767208244182,-161.24844439,0.00029376,2]
[400232651,1767208244191,-168.0,0.0002939,2]
[400232652,1767208244200,-4226.68,0.00029513,2]
[400232653,1767208244210,-168.0,0.00029553,7]
[400232654,1767208244220,-151.0,0.000296,7]
[400232655,1767208244230,-151.0,0.000296,7]
[400232656,1767208244239,-151.0,0.000296,7]
[400232657,1767208244248,-151.0,0.000296,7]
[400232658,1767208244258,-151.0,0.000296,7]
[400232659,1767208244267,-151.0,0.000296,7]
[400232660,1767208244279,-151.0,0.000296,7]
[400232661,1767208244288,-170.594651,0.000296,7]
[400232662,1767208244298,-168.0,0.00029631,2]
[400232663,1767208244307,-617.40005154,0.00029662,2]
[400232664,1767208244318,-151.0,0.0002968,7]
[400232665,1767208244327,-151.0,0.0002968,7]
[400232666,1767208244337,-151.0,0.0002968,7]
[400232667,1767208244348,-278.207289,0.0002968,7]
[400232668,1767208244358,-278.207289,0.0002968,7]
[400232669,1767208244367,-278.207289,0.0002968,7]
[400232670,1767208244376,-278.207289,0.0002968,7]
[400232671,1767208244385,-341.614676,0.0002968,7]
[400232672,1767208244394,-151.0,0.0002968,7]
[400232673,1767208244403,-341.614676,0.0002968,7]
[400232674,1767208244413,-151.0,0.0002968,7]
[400232675,1767208244422,-341.614676,0.0002968,7]
[400232676,1767208244431,-151.0,0.0002968,7]
[400232677,1767208244441,-341.614676,0.0002968,7]
[400232678,1767208244450,-234.699032,0.0002968,7]
[400232679,1767208244459,-299.44978,0.0002968,7]
[400232680,1767208244469,-299.44978,0.0002968,7]
[400232681,1767208244478,-299.44978,0.0002968,7]
[400232682,1767208244488,-254.736127,0.0002968,7]
[400232683,1767208244497,-299.44978,0.0002968,7]
[400232684,1767208244507,-151.0,0.0002968,7]
[400232685,1767208244521,-986.064237,0.0002968,7]
[400232686,1767208244531,-986.064237,0.0002968,7]
[400232687,1767208244543,-434.599422,0.0002968,7]
[400232688,1767208244553,-986.064237,0.0002968,7]
[400232689,1767208244562,-434.599422,0.0002968,7]
[400232690,1767208244571,-986.064237,0.0002968,7]
[400232695,1767208244580,-434.599422,0.0002968,7]
[400232696,1767208244681,-434.599422,0.0002968,7]
[400232697,1767208244692,-331.780528,0.0002968,7]
[400232698,1767208244702,-331.780528,0.0002968,7]
[400232699,1767208244711,-331.780528,0.0002968,7]
[400232700,1767208244721,-331.780528,0.0002968,7]
[400232702,1767208244730,-168.0,0.000297,2]
[400232704,1767208244740,-927.34,0.000297,14]
[400232706,1767208244749,-160.0,0.00029805,6]
[400232707,1767208244759,-5000.0,0.00029871,2]
[400232708,1767208244768,-173.81411526,0.00029899,19]
[400232709,1767208244777,-163.27,0.0003,2]
[400232710,1767208244787,-332.0,0.0003,14]
[400232711,1767208244797,-719.0,0.00030009,2]
[400232712,1767208244807,-244.9,0.00030074,4]
[400232713,1767208244817,-168.0,0.00030123,7]
[400232714,1767208244827,-168.0,0.00030168,2]
[400232715,1767208244836,-168.0,0.00030169,2]
[400232716,1767208244846,-640.24385345,0.0003021,2]
[400232717,1767208244855,-500.0,0.0003026,7]
[400232718,1767208244864,-168.0,0.00030266,2]
[400232719,1767208244874,-1400.0,0.00030281,7]
[400232720,1767208244883,-717.0,0.00030282,2]
[400232721,1767208244892,-1400.0,0.00030313,7]
[400232722,1767208244901,-160.0,0.0003039,7]
[400232723,1767208244910,-8500.79,0.000304,2]
[400232724,1767208244919,-332.0,0.00030411,14]
[400232725,1767208244929,-500.0,0.00030437,7]
[400232726,1767208244938,-1400.0,0.00030464,7]
[400232727,1767208244948,-1400.0,0.00030512,7]
[400232728,1767208244957,-500.0,0.00030519,7]
[400232729,1767208244967,-168.0,0.00030619,2]
[400232730,1767208244976,-161.24844439,0.00030633,2]
[400232731,1767208244985,-24425.5686256,0.00030655,10]
[400232732,1767208244994,-1400.0,0.00030683,7]
[400232733,1767208245003,-168.0,0.00030699,2]
[400232734,1767208245013,-627.0,0.00030701,2]
[400232735,1767208245023,-1364.0,0.00030701,2]
[400232736,1767208245033,-2156.0,0.00030701,2]
[400232737,1767208245042,-416.0,0.00030701,2]
[400232738,1767208245051,-416.0,0.00030701,2]
[400232739,1767208245060,-150.0,0.00030701,2]
[400232740,1767208245070,-1400.0,0.00030721,7]
[400232741,1767208245079,-663.93287602,0.00030758,2]
[400232742,1767208245088,-156.47,0.000308,7]
[400232743,1767208245098,-168.0,0.0003082,2]
[400232744,1767208245107,-1400.0,0.00030922,7]
[400232745,1767208245117,-956.2,0.00030958,30]
[400232746,1767208245126,-1400.0,0.00030962,7]
[400232747,1767208245135,-160.0,0.00030974,8]
[400232748,1767208245145,-183.42010434,0.00031,120]
[400232749,1767208245154,-180.68929149,0.00031,120]
[400232750,1767208245163,-180.54271303,0.00031,120]
[400232751,1767208245172,-193.78459303,0.00031,120]
[400232752,1767208245182,-178.8674121,0.00031,120]
[400232753,1767208245191,-161.01318651,0.00031,120]
[400232754,1767208245201,-198.07485528,0.00031,120]
[400232755,1767208245210,-162.33069799,0.00031,120]
[400232756,1767208245219,-162.37843672,0.00031,120]
[400232757,1767208245229,-1144.69294991,0.00031,120]
[400232758,1767208245238,-1041.66666667,0.00031,10]
[400232759,1767208245249,-183.49170094,0.00031,120]
[400232760,1767208245259,-206.24088796,0.00031,120]
[400232761,1767208245270,-309.65070131,0.00031,120]
[400232762,1767208245280,-716.0,0.00031005,2]
[400232763,1767208245289,-168.0,0.00031016,7]
[400232764,1767208245299,-500.0,0.00031044,7]
[400232765,1767208245308,-838.29989329,0.00031104,2]
[400232766,1767208245318,-1400.0,0.00031104,7]
[400232767,1767208245328,-500.0,0.00031111,7]
[400232768,1767208245338,-500.0,0.00031153,7]
[400232769,1767208245350,-168.0,0.00031181,2]
[400232770,1767208245360,-173.81411526,0.0003119,21]
[400232771,1767208245370,-1400.0,0.00031195,7]
[400232772,1767208245379,-1400.0,0.00031213,7]
[400232773,1767208245388,-1400.0,0.00031214,7]
[400232774,1767208245397,-500.0,0.00031232,7]
[400232775,1767208245407,-168.0,0.00031233,2]
[400232776,1767208245416,-151.687,0.00031246,2]
[400232777,1767208245425,-1400.0,0.00031285,7]
[400232778,1767208245434,-8500.79,0.000313,2]
[400232779,1767208245444,-927.34,0.000313,14]
[400232780,1767208245453,-688.49839244,0.00031306,2]
[400232781,1767208245463,-168.0,0.0003133,2]
[400232782,1767208245473,-168.0,0.00031338,2]
[400232783,1767208245483,-170.0,0.00031342,45]
[400232784,1767208245492,-1226.0,0.00031414,30]
[400232785,1767208245502,-819.5,0.00031414,30]
[400232786,1767208245512,-18560.0,0.00031414,30]
[400232787,1767208245521,-168.0,0.00031437,7]
[400232788,1767208245531,-956.2,0.00031506,31]
[400232790,1767208245540,-160.0,0.00031559,9]
[400232792,1767208245550,-332.0,0.00031644,14]
[400232794,1767208245559,-168.0,0.00031677,7]
[400232796,1767208245569,-1400.0,0.00031734,7]
[400232798,1767208245578,-4755.02,0.00031783,2]
[400232799,1767208245588,-1400.0,0.00031828,7]
[400232800,1767208245597,-1400.0,0.0003183,7]
[400232801,1767208245607,-713.97283296,0.00031854,2]
[400232802,1767208245616,-161.24844439,0.0003189,2]
[400232803,1767208245626,-183.42010434,0.000319,120]
[400232804,1767208245636,-180.68929149,0.000319,120]
[400232805,1767208245645,-180.54271303,0.000319,120]
[400232806,1767208245655,-193.78459303,0.000319,120]
[400232807,1767208245665,-178.8674121,0.000319,120]
[400232809,1767208245674,-161.01318651,0.000319,120]
[400232811,1767208245683,-198.07485528,0.000319,120]
[400232812,1767208245693,-162.33069799,0.000319,120]
[400232815,1767208245703,-162.37843672,0.000319,120]
[400232817,1767208245712,-1144.69294991,0.000319,120]
[400232819,1767208245722,-183.49170094,0.000319,120]
[400232822,1767208245731,-244.9,0.00031906,5]
[400232825,1767208245740,-1400.0,0.00031925,7]
[400232828,1767208245750,-206.57119576,0.00031936,10]
[400232829,1767208245764,-1400.0,0.00031937,7]
[400232831,1767208245773,-1017.21903832,0.00032,7]
[400232832,1767208245783,-1400.0,0.00032051,7]
[400232833,1767208245793,-956.2,0.00032054,32]
[400232835,1767208245804,-1400.0,0.00032071,7]
[400232837,1767208245814,-716.0,0.00032097,2]
[400232839,1767208245823,-1400.0,0.00032122,7]
[400232841,1767208245832,-500.0,0.00032131,7]
[400232843,1767208245842,-1400.0,0.00032137,7]
[400232844,1767208245851,-160.0,0.00032143,10]
[400232846,1767208245862,-1400.0,0.00032155,7]
[400232848,1767208245871,-1400.0,0.00032158,7]
[400232850,1767208245880,-500.0,0.00032159,7]
[400232851,1767208245889,-500.0,0.00032224,7]
[400232852,1767208245899,-1400.0,0.00032236,7]
[400232853,1767208245908,-1400.0,0.00032269,7]
[400232855,1767208245918,-156.47,0.000323,7]
[400232857,1767208245927,-1400.0,0.00032335,7]
[400232858,1767208245936,-1400.0,0.00032337,7]
[400232859,1767208245946,-500.0,0.00032361,7]
[400232860,1767208245955,-740.38982778,0.00032402,2]
[400232861,1767208245964,-242.47185193,0.00032457,7]
[400232862,1767208245973,-716.0,0.00032467,2]
[400232863,1767208245982,-173.81411526,0.00032481,23]
[400232864,1767208245991,-2718.46508754,0.00032486,7]
[400232865,1767208246001,-717.0,0.00032554,7]
[400232866,1767208246010,-716.0,0.00032567,7]
[400232867,1767208246021,-956.2,0.00032602,33]
[400232868,1767208246030,-927.34,0.000327,14]
[400232869,1767208246039,-160.0,0.00032728,11]
[400232870,1767208246049,-500.0,0.00032877,5]
[400232871,1767208246058,-150.0,0.00032877,5]
[400232872,1767208246068,-180.68929149,0.000329,120]
[400232874,1767208246077,-180.54271303,0.000329,120]
[400232875,1767208246086,-193.78459303,0.000329,120]
[400232876,1767208246096,-178.8674121,0.000329,120]
[400232877,1767208246105,-161.01318651,0.000329,120]
[400232878,1767208246114,-198.07485528,0.000329,120]
[400232879,1767208246123,-162.33069799,0.000329,120]
[400232880,1767208246133,-162.37843672,0.000329,120]
[400232881,1767208246142,-1144.69294991,0.000329,120]
[400232882,1767208246151,-183.49170094,0.000329,120]
[400232883,1767208246160,-767.7842514,0.0003295,2]
[400232884,1767208246169,-1016.0,0.00033,7]
[400232885,1767208246178,-892.19060072,0.00033104,120]
[400232886,1767208246187,-5000.0,0.00033121,2]
[400232887,1767208246196,-161.24844439,0.00033146,2]
[400232888,1767208246206,-956.2,0.0003315,34]
[400232889,1767208246215,-1123.321112,0.00033165,2]
[400232890,1767208246224,-179.95097548,0.000332,117]
[400232891,1767208246234,-179.95097547,0.000332,117]
[400232892,1767208246243,-2863.2521,0.0003322,30]
[400232893,1767208246253,-335.0,0.00033226,30]
[400232894,1767208246263,-8500.79,0.000333,14]
[400232895,1767208246278,-160.0,0.00033312,12]
[400232896,1767208246287,-1004.98248976,0.00033425,5]
[400232897,1767208246297,-796.19226871,0.00033498,2]
[400232898,1767208246307,-956.2,0.00033698,35]
[400232899,1767208246319,-250.0,0.00033699,5]
[400232900,1767208246328,-200.26076,0.000337,120]
[400232901,1767208246337,-627.0,0.00033701,2]
[400232902,1767208246347,-1364.0,0.00033701,2]
[400232903,1767208246356,-2156.0,0.00033701,2]
[400232904,1767208246366,-416.0,0.00033701,2]
[400232905,1767208246375,-416.0,0.00033701,2]
[400232906,1767208246384,-150.0,0.00033701,2]
[400232907,1767208246394,-244.9,0.00033738,6]
[400232908,1767208246403,-173.81411526,0.00033772,25]
[400232909,1767208246412,-3728.82933865,0.00033799,10]
[400232910,1767208246421,-8500.79,0.000338,14]
[400232911,1767208246431,-927.34,0.000338,30]
[400232912,1767208246441,-295.735,0.000338,20]
[400232913,1767208246451,-295.73,0.000338,20]
[400232914,1767208246461,-160.0,0.00033896,13]
[400232915,1767208246470,-180.68929149,0.000339,120]